Cogmind - Beta 13 @@@ ROGUE MODE // 2024.04.10 @ 22:19:29 Player: gabr Result: Destroyed by G-47 Trooper with Particle Gun Performance ------------- Evolutions (2) 1000 Regions Visited (5) 1000 Robots Destroyed (53) 265 Value Destroyed (2501) 2501 Prototype IDs (1) 20 Alien Tech Used (0) 0 Bonus (647) 647 TOTAL SCORE: 5433 Bonus ------- High Alert Combat Kills 366 Follower Combat Kills 236 Entered Garrisons 200 Friendly Fire -155 Cogmind --------- Core Integrity 0/550 Matter 300/300 Energy 99/100 System Corruption 10% Temperature Cool (18) Movement Core (200) Ox3 Location -8/Materials Parts ------- > --- POWER (2) -------- (None) > --- PROPULSION (4) --- (None) > --- UTILITY (3) ------ Improved Heat Sink Medium Storage Unit Hacking Suite > --- WEAPON (2) ------- (None) > --- INVENTORY (10) --- Aluminum Leg Aluminum Leg Improved Heat Sink Medium Storage Unit Particle Charger Light Armor Plating Light Armor Plating Peak State ------------ > --- POWER ------------ Nuclear Core Light Nuclear Core > --- PROPULSION ------- Carbon-fiber Leg Carbon-fiber Leg Carbon-fiber Leg Carbon-fiber Leg > --- UTILITY ---------- Improved Heat Sink Medium Storage Unit Hacking Suite > --- WEAPON ----------- Spread Laser Advanced Beam Rifle > --- INVENTORY -------- Light Nuclear Core Aluminum Leg Aluminum Leg Carbon-fiber Leg Medium Storage Unit Particle Charger Light Armor Plating Light Armor Plating Spread Laser Gauss Rifle [Rating: 33] Favorites ----------- Power Light Nuclear Core Engine Improved Ion Engine Power Core Light Nuclear Core Propulsion Aluminum Leg Leg Aluminum Leg Wheel Compact Wheel Utility Medium Storage Unit Device Improved Heat Sink Storage Medium Storage Unit Processor Transport Network Coupler Hackware Hacking Suite Protection Light Armor Plating Weapon Beam Rifle Energy Gun Beam Rifle Ballistic Gun Heavy Assault Rifle Build | -11 -10 -9 -9 -9 -8 ------- Run | Yrd Mat Mat Sto Gar Mat Slots Evolved 4 | . . 2 . . 2 Power 1 | . . . . . 1 Propulsion 2 | . . 2 . . . Utility 1 | . . . . . 1 Weapon . | . . . . . . Parts Attached 64 | 6 8 4 6 8 32 Power 13 | 1 . 1 2 2 7 Engine 8 | 1 . 1 1 2 3 Core 5 | . . . 1 . 4 Reactor . | . . . . . . Propulsion 28 | 2 4 2 3 4 13 Treads . | . . . . . . Leg 26 | . 4 2 3 4 13 Wheel 2 | 2 . . . . . Hover . | . . . . . . Flight . | . . . . . . Utility 9 | 1 2 . . 1 5 Device 2 | . . . . . 2 Storage 2 | 1 1 . . . . Processor 1 | . 1 . . . . Hackware 1 | . . . . 1 . Protection 3 | . . . . . 3 Artifact . | . . . . . . Weapon 14 | 2 2 1 1 1 7 Energy Gun 9 | 2 2 1 . . 4 Energy Cannon . | . . . . . . Ballistic Gun 5 | . . . 1 1 3 Ballistic Cannon . | . . . . . . Launcher . | . . . . . . Special Weapon . | . . . . . . Impact Weapon . | . . . . . . Slashing Weapon . | . . . . . . Piercing Weapon . | . . . . . . Special Melee Weapon . | . . . . . . Unidentified Prototypes 1 | . . . . . 1 Corrupted Parts 2 | . . . . . 2 System Corruption 9 | . . . . . 9 Parts Lost 19 | . 2 1 . 2 14 Power 5 | . . 1 . 1 3 Propulsion 9 | . 1 . . 1 7 Utility 1 | . . . . . 1 Weapon 4 | . 1 . . . 3 Highest Loss Streak 10 | . 1 1 . 2 10 To Critical Strikes . | . . . . . . Average Slot Usage (%) 99 | . 97 99 100 99 97 Engine 7 | . 14 10 8 6 6 Core 4 | . . . 2 4 10 Leg 39 | . 23 44 44 43 35 Storage 10 | . 14 11 11 11 9 Processor 3 | . 13 11 11 . . Hackware 7 | . . . . 10 9 Protection 1 | . . . . . 7 Energy Gun 13 | . 26 22 15 11 10 Ballistic Gun 7 | . . . 6 11 7 Naked Turns . | . . . . . . Heaviest Build 37 | 11 16 17 23 23 37 Greatest Support 60 | 26 26 40 40 40 60 Greatest Overweight (x) 3 | 3 . . . . 3 Average Overweight (x) . | . . . . . . Largest Inventory Capacity 10 | 8 10 10 10 10 10 Average Capacity 9 | 7 8 10 10 10 10 Most Carried 10 | 4 10 10 10 10 10 Average Carried 8 | 1 5 8 9 8 9 Final Capacity 10 | 8 10 10 10 10 10 Final Carried 10 | 4 10 9 9 8 7 Class Distribution -------------------- 74% | Scavenger-Mutant 17% | Mutant 8% | Commander-Mutant Dominant Class ---------------- Mutant | -10/Materials Scavenger-Mutant | -9/Materials Commander-Mutant | -9/Storage Scavenger-Mutant | -9/Garrison Scavenger-Mutant | -8/Materials Resources | -11 -10 -9 -9 -9 -8 ----------- Run | Yrd Mat Mat Sto Gar Mat Matter Collected 1464 | 166 171 40 96 489 502 Remotely . | . . . . . . Salvage Created 2194 | . 305 104 115 943 727 Parts 133 | . 16 5 5 59 48 Haulers Intercepted 4 | . 1 . 1 . 2 Recyclers Shooed 1 | . 1 . . . . Parts Field Recycled . | . . . . . . Retrieved Matter . | . . . . . . Parts Self-Destructed . | . . . . . . Prevented . | . . . . . . Kills | -11 -10 -9 -9 -9 -8 ------- Run | Yrd Mat Mat Sto Gar Mat Combat Hostiles Destroyed 44 | . 8 2 . 21 13 Guns 44 | . 8 2 . 21 13 Classes Destroyed 10 | . 4 1 . 2 3 Worker 1 | . . . . . 1 Hauler 4 | . 1 . 1 . 2 Mechanic 1 | . . . . . 1 Operator 2 | . 1 . . . 1 Swarmer 14 | . 3 . . 11 . Grunt 18 | . 5 . 1 6 6 Brawler 1 | . . . . . 1 Sentry 7 | . . 2 . 2 3 Hunter 4 | . . . . 1 3 Programmer 1 | . . . . 1 . Best Kill Streak 4 | . 3 1 1 4 4 Combat Bots Only 4 | . 3 1 . 4 4 Max Kills in Single Turn 2 | . 2 1 1 2 2 Gunslinging 1 | . 1 . . . . Exploded . | . . . . . . Melee . | . . . . . . Uniques/NPCs Destroyed . | . . . . . . Combat | -11 -10 -9 -9 -9 -8 -------- Run | Yrd Mat Mat Sto Gar Mat Hostile Shots Fired 328 | . 51 12 . 92 173 Missed 81 | . 9 6 . 33 33 Damage Taken 3510 | . 398 94 11 637 2370 Core 800 | . 85 . . 163 552 Absorbed by Shields . | . . . . . . Core Remaining (%) 75 | 100 66 . . 59 . Volleys Fired 241 | . 37 8 11 123 62 Largest 2 | . 2 2 2 2 2 Hottest 126 | . 100 96 96 79 126 Shots Fired 453 | . 66 16 21 239 111 Gun 453 | . 66 16 21 239 111 Cannon . | . . . . . . Launcher . | . . . . . . Special . | . . . . . . Kinetic 175 | . . . 9 122 44 Thermal 278 | . 66 16 12 117 67 Explosive . | . . . . . . Electromagnetic . | . . . . . . Robot Hit Streak 64 | . 8 11 9 64 13 Robot Miss Streak 6 | . 3 1 3 6 6 Penetration Max 1 | . . . . . 1 Secondary Targets 4 | . 2 . . 1 1 Max Gunslinging Chain 1 | . 1 . . 1 1 Shots Hit Robots 293 | . 44 15 13 137 84 Core Hits 132 | . 16 4 4 49 59 Critical Kills . | . . . . . . Critical Parts Destroyed 1 | . . . . . 1 Critical Strikes 13 | . 5 . . 6 2 Burn 12 | . 5 . . 6 1 Destroy 1 | . . . . . 1 Melee Attacks . | . . . . . . Impact . | . . . . . . Slashing . | . . . . . . Piercing . | . . . . . . Sneak Attacks . | . . . . . . Combat Hostiles . | . . . . . . Follow-up Attacks . | . . . . . . Damage Inflicted 4360 | . 576 189 216 1861 1518 Guns 4181 | . 570 189 216 1861 1345 Cannons . | . . . . . . Explosions 150 | . . . . . 150 Melee . | . . . . . . Ramming 29 | . 6 . . . 23 Kinetic 1524 | . . . 113 840 571 Thermal 2657 | . 570 189 103 1021 774 Explosive 150 | . . . . . 150 Electromagnetic . | . . . . . . Impact . | . . . . . . Slashing . | . . . . . . Piercing . | . . . . . . Highest Corruption 10 | . 2 2 3 4 10 Average Corruption 4 | . 2 1 2 3 6 Corruption Purged . | . . . . . . Corruption Blocked . | . . . . . . Effects 65 | . 4 2 3 39 17 Message Errors 15 | . 1 . 1 11 2 Matter Fused 16 | . 1 1 . 8 6 Heat Flow Errors 9 | . . . . 5 4 Energy Discharges 7 | . 1 . 1 3 2 Parts Fused 3 | . . . . 3 . Data Loss (minor) 4 | . . . . 4 . Data Loss (major) 5 | . . 1 . 3 1 Misfires 1 | . . . . 1 . Alerts 1 | . 1 . . . . Misdirections 1 | . . . . . 1 Weapon Failures 3 | . . . 1 1 1 Overload Shots . | . . . . . . Overflow Damage . | . . . . . . Projectiles . | . . . . . . Explosions . | . . . . . . Melee . | . . . . . . Knockbacks . | . . . . . . Impact . | . . . . . . Kinetic . | . . . . . . Secondary . | . . . . . . Self-Inflicted Damage 87 | . . . . . 87 Shots 1 | . . . . . 1 Rammed . | . . . . . . Targets Rammed 10 | . 3 . . . 7 Kicked 10 | . 3 . . . 7 Crushed . | . . . . . . Highest Temperature 580 | . 331 89 36 283 580 Average Temperature 103 | . 112 45 12 78 145 Received Heat Transfer 852 | . 132 9 6 120 585 Effects 20 | . 6 . . 2 12 Shutdowns 5 | . 1 . . . 4 Energy Bleed 6 | . 3 . . . 3 Interference 5 | . 2 . . 2 1 Matter Decay 1 | . . . . . 1 Short Circuit 1 | . . . . . 1 Damage (minor) 1 | . . . . . 1 Damage (major) 1 | . . . . . 1 Siege Activations . | . . . . . . Robots Corrupted . | . . . . . . Combat Hostiles . | . . . . . . Parts Fried . | . . . . . . Impact Corruptions . | . . . . . . Robots Melted 2 | . 1 . . 1 . Combat Hostiles . | . . . . . . Parts Melted 10 | . 7 2 . 1 . Heat Transferred 7353 | . 2072 471 259 2997 1554 Parts Sabotaged . | . . . . . . Parts Stolen . | . . . . . . Parts Stripped . | . . . . . . Power Chain Reactions . | . . . . . . Alert | -11 -10 -9 -9 -9 -8 ------- Run | Yrd Mat Mat Sto Gar Mat Peak Influence 1216 | . 198 80 290 1216 793 Initial 592 | . . . 33 188 592 Average 591 | . 102 28 140 834 650 Maximum Alert Level 4 | . . . 1 4 3 Low Security (%) 25 | 100 100 100 65 1 . Level 1 10 | . . . 34 14 . Level 2 21 | . . . . 12 71 Level 3 27 | . . . . 40 28 Level 4 16 | . . . . 31 . Level 5 . | . . . . . . High Security . | . . . . . . Max Security . | . . . . . . Squads Dispatched 9 | . 2 . 2 . 5 Investigation 1 | . . . . . 1 Extermination . | . . . . . . Reinforcement 5 | . 2 . . . 3 Assault . | . . . . . . Garrison 3 | . . . 2 . 1 Intercept . | . . . . . . Searches Triggered . | . . . . . . Construction Impeded 1 | . . . . . 1 Haulers Reinforced . | . . . . . . Active Scanning Responses . | . . . . . . Cargo Convoy Interrupts . | . . . . . . Stealth | -11 -10 -9 -9 -9 -8 --------- Run | Yrd Mat Mat Sto Gar Mat Distress Signals 2 | . 1 . 1 . . Communications Jammed . | . . . . . . Distress Signals . | . . . . . . Times Spotted 83 | . 15 2 6 29 31 Peak Tracking Total 10 | . 4 1 2 4 10 Tactical Retreats 5 | . . . . 5 . Traps | -11 -10 -9 -9 -9 -8 ------- Run | Yrd Mat Mat Sto Gar Mat Traps Triggered 16 | . 1 2 1 9 3 Indirectly . | . . . . . . Trap Hack Attempts . | . . . . . . Triggered . | . . . . . . Disarmed . | . . . . . . Reprogrammed 4 | . . . . . 4 Reused . | . . . . . . Traps Extracted . | . . . . . . Installed . | . . . . . . Triggered . | . . . . . . Machines | -11 -10 -9 -9 -9 -8 ---------- Run | Yrd Mat Mat Sto Gar Mat Machines Disabled 7 | . . . 1 5 1 Max in Single Turn 1 | . . . 1 1 1 Garrison Relay 5 | . . . . 5 . Machines Repaired . | . . . . . . Machines Dismantled . | . . . . . . Machines Sabotaged . | . . . . . . Overloaded Fab Kills . | . . . . . . Hacking | -11 -10 -9 -9 -9 -8 --------- Run | Yrd Mat Mat Sto Gar Mat Machines Accessed 6 | . . . 2 1 3 Terminals 5 | . . . 1 1 3 Fabricators . | . . . . . . Repair Stations . | . . . . . . Recycling Units . | . . . . . . Scanalyzers . | . . . . . . Garrison Access 1 | . . . 1 . . Total Hacks 6 | . . . 2 1 3 Successful 4 | . . . 2 . 2 Failed 2 | . . . . 1 1 Catastrophic . | . . . . . . Database Lockouts . | . . . . . . Manual . | . . . . . . Terminals 5 | . . . 1 1 3 Fabricators . | . . . . . . Repair Stations . | . . . . . . Recycling Units . | . . . . . . Scanalyzers . | . . . . . . Garrison Access 1 | . . . 1 . . Terminal Hacks 3 | . . . 1 . 2 Open Door 1 | . . . 1 . . Branch Access Points 1 | . . . . . 1 Reprogram Traps 1 | . . . . . 1 Fabricator Hacks . | . . . . . . Repair Station Hacks . | . . . . . . Recycling Unit Hacks . | . . . . . . Scanalyzer . | . . . . . . Garrison Access Hacks 1 | . . . 1 . . Unlock Access 1 | . . . 1 . . Unauthorized Hacks . | . . . . . . Terminals . | . . . . . . Fabricators . | . . . . . . Repair Stations . | . . . . . . Recycling Units . | . . . . . . Scanalyzers . | . . . . . . Garrison Access . | . . . . . . Data Cores Recovered 1 | . . . 1 . . Used . | . . . . . . Hacking Detections 4 | . . . 1 1 2 Full Trace Events . | . . . . . . Feedback Events . | . . . . . . Feedback Blocked . | . . . . . . Robot Schematics Acquired . | . . . . . . Robots Built . | . . . . . . Authchips . | . . . . . . Time . | . . . . . . Total Robot Build Rating . | . . . . . . Part Schematics Acquired . | . . . . . . Parts Built . | . . . . . . Authchips . | . . . . . . Time . | . . . . . . Total Part Build Rating . | . . . . . . Parts Repaired . | . . . . . . Time . | . . . . . . Parts Recycled . | . . . . . . Recycled Matter . | . . . . . . Retrieved Matter . | . . . . . . Retrieved Components . | . . . . . . Parts Scanalyzed . | . . . . . . Part Schematics Acquired . | . . . . . . Parts Damaged . | . . . . . . Bothacking | -11 -10 -9 -9 -9 -8 ------------ Run | Yrd Mat Mat Sto Gar Mat Used RIF Installer . | . . . . . . Robots Hacked . | . . . . . . Non-combat . | . . . . . . Combat . | . . . . . . Robot Hacks Applied . | . . . . . . Relay Couplers Released 17 | . . . . 17 . Machine Destruction 17 | . . . . 17 . Fabnet Peak Effective % . | . . . . . . Robots Rewired . | . . . . . . Allies Hacked . | . . . . . . Hacks Repelled . | . . . . . . Allies | -11 -10 -9 -9 -9 -8 -------- Run | Yrd Mat Mat Sto Gar Mat Total Allies 10 | . . . 10 . . Largest Group 10 | . . . 10 6 . Highest-Rated Group 88 | . . . 88 48 . Highest-Rated Ally 16 | . . . 16 8 . Total Orders . | . . . . . . Ally Attacks 67 | . . . 38 29 . Total Damage 572 | . . . 307 265 . Kills 14 | . . . 9 5 . Allies Corrupted . | . . . . . . Allies Melted . | . . . . . . Intel | -11 -10 -9 -9 -9 -8 ------- Run | Yrd Mat Mat Sto Gar Mat Robot Analysis Total . | . . . . . . Derelict Logs Recovered . | . . . . . . Drone Launches . | . . . . . . Drone Recoveries . | . . . . . . Exploration | -11 -10 -9 -9 -9 -8 ------------- Run | Yrd Mat Mat Sto Gar Mat Turns Passed 3898 | 74 438 248 309 2019 810 Spaces Moved 2402 | 56 263 171 197 1321 394 Core 30 | 27 . . . . 3 Treads . | . . . . . . Legs 2304 | . 224 171 197 1321 391 Wheels 68 | 29 39 . . . . Hover . | . . . . . . Flight . | . . . . . . Fastest Speed 50 | 50 90 120 120 120 120 Average Speed 119 | 110 115 120 120 120 120 Slowest Speed 200 | 200 120 120 120 120 200 Overloaded Moves . | . . . . . . Propulsion Burnouts . | . . . . . . Robots Hopped . | . . . . . . Cave-ins Triggered . | . . . . . . Exploration Rate (%) 35 | 4 65 19 27 66 33 Regions Visited 5 Branch Regions 1 Pre-discovered Areas . | . . . . . . Known Exits Taken 1 | . . . 1 . . Unknown Exits Taken 3 | 1 1 1 . . . Scrap Searched . | . . . . . . Spaces Dug . | . . . . . . Terrain Destroyed 11 | . . . . . 11 Melee . | . . . . . . Projectile . | . . . . . . AOE 11 | . . . . . 11 Terrain Rammed . | . . . . . . Walls Destroyed . | . . . . . . Machines Disabled . | . . . . . . Actions | -11 -10 -9 -9 -9 -8 --------- Run | Yrd Mat Mat Sto Gar Mat Total 2980 | 65 329 197 251 1516 622 Wait 180 | . 10 14 24 31 101 Move 2394 | 55 262 170 196 1317 394 Hop . | . . . . . . Pick Up 24 | 4 7 1 4 1 7 Fast Attach 9 | 6 1 . . . 2 Attach 15 | . 2 3 . 2 8 Detach 1 | . . . . . 1 Swap 40 | . 5 1 6 6 22 Drop 31 | . 2 . 8 3 18 Fire 241 | . 37 8 11 123 62 Melee . | . . . . . . Ram . | . . . . . . Kick 10 | . 3 . . . 7 Crush . | . . . . . . Escape Stasis 31 | . . . . 31 . Rewire 4 | . . . 2 2 . Trap . | . . . . . . Miscellaneous . | . . . . . . Route ------- -11/Scrapyard -10/Materials -9/Materials -9/Storage -9/Garrison (discovered 3 exits: *Mat x3) -8/Materials History --------- Turn | Location | Event 17 | -11/Scrapyard | Discovered new exit (range 16) 75 | -11/Scrapyard | Entered Materials 316 | -10/Materials | Build established: Mutant 484 | -10/Materials | Discovered new exit (range 16) 513 | -10/Materials | Entered another Materials area 513 | -9/Materials | Evolved 2 slots: Propulsion x2 698 | -9/Materials | Discovered new exit (range 9) 761 | -9/Materials | Entered Storage 793 | -9/Storage | Assisted by bots powering up and referring to "LRC-V3" 900 | -9/Storage | Garrison activated, responded to threat 1058 | -9/Storage | Identified exit to Garrison 1064 | -9/Storage | Build established: Commander-Mutant 1070 | -9/Storage | Entered Garrison 1070 | -9/Garrison | Accompanied by 6 allies 1149 | -9/Garrison | Lost 6 allies 1172 | -9/Garrison | Triggered checkpoint 1262 | -9/Garrison | Garrison Relay disabled 1334 | -9/Garrison | Triggered checkpoint 1372 | -9/Garrison | Discovered new exit (range 12) 1384 | -9/Garrison | Garrison Relay disabled 1409 | -9/Garrison | Build established: Scavenger-Mutant 1416 | -9/Garrison | Triggered checkpoint 1444 | -9/Garrison | Garrison Relay disabled 1544 | -9/Garrison | Triggered checkpoint 1616 | -9/Garrison | Triggered checkpoint 1639 | -9/Garrison | Garrison Relay disabled 1769 | -9/Garrison | Discovered new exit (range 14) 1842 | -9/Garrison | Triggered checkpoint 1885 | -9/Garrison | Triggered checkpoint 1973 | -9/Garrison | Discovered new exit (range 9) 2018 | -9/Garrison | Triggered checkpoint 2154 | -9/Garrison | Garrison Relay disabled 2869 | -9/Garrison | Attempted to access garrison exit controls, blocked by remote lockdown 2977 | -9/Garrison | Attempted to access garrison exit controls, blocked by remote lockdown 3089 | -9/Garrison | Entered Materials 3089 | -8/Materials | Evolved 2 slots: Power x1, Utility x1 3427 | -8/Materials | System corruption reached 10% 3870 | -8/Materials | Core integrity fell below 50% 3877 | -8/Materials | Garrison activated, responded to threat 3889 | -8/Materials | Core integrity fell below 20% 3899 | -8/Materials | Destroyed by G-47 Trooper with Particle Gun Last Messages --------------- 03877_ ALERT: Activating Garrison Access M001. 03879_ U-05 Engineer builds a Wall. 03880_ Slug penetrates Atomic Centrifuge. 03880_ Carbon-fiber Leg destroyed. 03880_ Knocked back. 03883_ Slug penetrates G-47 Trooper. 03883_ G-47 Trooper destroyed. 03884_ Penetrated by Slug. 03885_ Lgt. Nuclear Core destroyed. 03886_ System corrupted: Substantial component data lost. 03887_ Gauss Rifle destroyed. 03891_ Spread Laser destroyed. 03891_ Kicked Y-45 Defender. 03891_ Slug penetrates Atomic Centrifuge. 03892_ Carbon-fiber Leg destroyed. 03892_ Kicked Y-45 Defender. 03894_ Carbon-fiber Leg destroyed. 03896_ K-01 Serf collects debris. 03897_ Y-45 Defender destroyed. 03898_ U-05 Engineer builds a Wall. Map ----- +----------------------------------------------------+ | ??????????????????????????????????????????????? | | ??????????????????????????????????????????????? | | ??????????????????????????????????????????????? | | ??????????????????????????????????????????????? | | ??????????????????????????????????????????????? | | ??????????????????????????????????????????????? | | ??????????????????????????????????????????????? | | ??????????????????????????????????????????????? | | ??????????????????????????????????????????????? | | ??????????????????????????????????????????????? | | ??????????????????????????????????????????????? | | ??????????????????????????????????????????????? | | ??????????????????????????????????????????????? | | ??????????????????????????????????????????????? | | ??????????????????????????????????????????????? | | ??????????????????????????????????????????????? | | ??????????????????????????????????????????????? | | ???????????????????###########????????????????? | | ???????????????????# ! #????????????????? | | ???????????????????# #????????????????? | | ???????????????????# /#????????????????? | | ???????????????????# g u##???????????????? | | ???????????????????# """ ""gH##???????????????? | | ???????????????????# "R gg[#???????????????? | | ???????????????????# """ g !u##???????????????? | | ???????????????????# k@%*%#????????#???????? | | ???????????????????#####/#####?????? ##??????? | | ??????????############ ####### #??????? | | ????????? % #??????? | | ????????? % #??????? | | ????????? % #??????? | | ??????????############ ####### #??????? | | ?????????????????????## ##????????###???????? | | ??????????????????????# #???????????????????? | | ??????????????????????# #???????????????????? | | ????????????########### #???????????????????? | | ????????????# = ## #???????????????????? | | ????????????# """ ## #???????????????????? | | ????????????# """ ## #???????????????????? | | ????????????# """ ## ###########?????????? | | ????????????# !## # #?????????? | | ????????????# """ ## #[! ] #?????????? | | ????????????# """ ## #%* #?????????? | | ????????????# """ ## #= * #?????????? | | ????????????# ## %/[= #?????????? | | ?????????#########+#### #=! ] #?????????? | | ?????????# # # #?????????? | | ?????????#""" # # #?????????? | | ?????????#""" !#* """ ###########?????????? | | ?????????#""" !%+!=""" #???????????????????? | +----------------------------------------------------+ Best States ------------- Heat Dissipation 45 Energy Generation 23 Energy Capacity 430 Matter Stores 300 Matter Capacity 300 Sight Range 16 Terrain Scan Density 10 Armor Coverage 225 Evasion (%) 55 Offensive Hacking 10 Item Schematics ----------------- None Robot Schematics ------------------ None Fabricated ------------ Nothing Alien Tech Used ----------------- None Achievements -------------- None Challenges ------------ None Game ------ Seed FlightBiocellSword Manual? 0 Play Time 00:34:11 Cumulative 81.1 hours Start 2024.04.10 @ 21:44:26 End 2024.04.10 @ 22:19:29 Sessions 1 Manual Loads 0 Difficulty Rogue Special Mode None Game No. 169 Rogue 169 Adventurer 0 Explorer 0 Win Type - Total 0 Types 0/0/0/0/0/0/0/0/0 Lore% 28 Gallery% 44 Achievement% 32 Wizard Run 0 Options --------- Layout 0 ASCII 0 Keyboard 1 Movement Numpad Keybinds 0 Fullscreen 1 Font 24/Terminus Map View 76x50 Zoom Use 0% Tactical HUD 1 Map Filters NONE Filters NONE Steam 1 RUN: a59a81de-b4d5-4975-82a8-c0967855fca8